lending/lending_fUSD_20260209
["ID","MTS","AMOUNT","RATE_DAILY","PERIOD"]
[404893986,1770658231862,-712.57717035,0.00016753,2]
[404893987,1770658231904,-501.23820513,0.00016753,2]
[404893988,1770658231916,-5351.09602202,0.00016753,2]
[404893989,1770658231926,-19948.26576386,0.00016753,2]
[404893990,1770658231961,-9266.26572687,0.00016753,2]
[404893991,1770658231977,-150.29839691,0.00016753,2]
[404893992,1770658231988,-3061.24834134,0.00016753,2]
[404893993,1770658231997,-2500.0,0.00016753,2]
[404893994,1770658232007,-1123.0,0.00016822,2]
[404893995,1770658232016,-166.7450837,0.00016843,2]
[404893997,1770658232026,-151.0,0.0001685,2]
[404893999,1770658232036,-550.0,0.00016852,2]
[404894001,1770658232046,-354.10514682,0.00016852,2]
[404894003,1770658232056,-500.0,0.00016852,2]
[404894004,1770658232066,-500.0,0.00016852,2]
[404894006,1770658232080,-500.0,0.00016852,2]
[404894008,1770658232090,-500.0,0.00016852,2]
[404894010,1770658232100,-494.63784742,0.00016852,2]
[404894011,1770658232110,-500.0,0.00016852,2]
[404894012,1770658232120,-242.95812862,0.00016852,2]
[404894013,1770658232129,-195.0,0.00016853,2]
[404894014,1770658232139,-252151.46804439,0.00016853,2]
[404894015,1770658232159,-18960.77643203,0.00016853,2]
[404894016,1770658232172,-67900.70219683,0.00016853,2]
[404894017,1770658232186,-3160987.05332675,0.00016853,2]
[404894018,1770658232196,-4125.012,0.00016853,2]
[404894019,1770658232205,-3959.3968,0.00016853,2]
[404894020,1770658232219,-62388.6925949,0.00016869,2]
[404894021,1770658232228,-29214.53149073,0.00016869,2]
[404894022,1770658232239,-195.0,0.00016887,2]
[404894023,1770658232248,-195.0,0.00016887,2]
[404894024,1770658232258,-3061.24834127,0.00016917,2]
[404894025,1770658232267,-89049.04330562,0.00016919,2]
[404894026,1770658232278,-4081.89381736,0.00016923,2]
[404894031,1770658237842,-2447.0,0.00016923,2]
[404894032,1770658238052,-32965.74268675,0.00016923,2]
[404894033,1770658238062,-500.0,0.00016943,2]
[404894034,1770658238073,-500.0,0.00016943,2]
[404894035,1770658238087,-151.0,0.00016943,2]
[404894036,1770658238096,-500.0,0.00016943,2]
[404894037,1770658238106,-151.0,0.00016943,2]
[404894038,1770658238118,-500.0,0.00016943,2]
[404894040,1770658238127,-151.0,0.00016943,2]
[404894042,1770658238137,-500.0,0.00016943,2]
[404894044,1770658238147,-151.0,0.00016943,2]
[404894046,1770658238157,-151.0,0.00016943,2]
[404894048,1770658238166,-500.0,0.00016943,2]
[404894050,1770658238176,-151.0,0.00016943,2]
[404894052,1770658238186,-151.0,0.00016943,2]
[404894053,1770658238196,-200.0,0.00016943,2]
[404894054,1770658238206,-500.0,0.00016943,2]
[404894055,1770658238215,-151.0,0.00016943,2]
[404894056,1770658238226,-151.0,0.00016943,2]
[404894057,1770658238238,-500.0,0.00016943,2]
[404894058,1770658238247,-151.0,0.00016943,2]
[404894059,1770658238257,-500.0,0.00016943,2]
[404894060,1770658238267,-151.0,0.00016943,2]
[404894061,1770658238276,-500.0,0.00016943,2]
[404894062,1770658238285,-500.0,0.00016943,2]
[404894063,1770658238294,-500.0,0.00016943,2]
[404894065,1770658238304,-500.0,0.00016943,2]
[404894067,1770658238314,-500.0,0.00016943,2]
[404894068,1770658238323,-500.0,0.00016943,2]
[404894069,1770658238333,-500.0,0.00016943,2]
[404894070,1770658238342,-500.0,0.00016943,2]
[404894071,1770658238352,-500.0,0.00016943,2]
[404894072,1770658238361,-500.0,0.00016943,2]
[404894073,1770658238370,-500.0,0.00016943,2]
[404894074,1770658238380,-500.0,0.00016943,2]
[404894075,1770658238390,-500.0,0.00016943,2]
[404894076,1770658238399,-500.0,0.00016943,2]
[404894077,1770658238409,-200.0,0.00016943,2]
[404894078,1770658238418,-1418.15,0.00016952,2]
[404894079,1770658238428,-500.0,0.00016953,2]
[404894080,1770658238437,-1479.37248581,0.00016953,2]
[404894081,1770658238446,-150.29839688,0.00016982,2]
[404894082,1770658238455,-62388.6925949,0.00016986,2]
[404894083,1770658238464,-29214.53149073,0.00016986,2]
[404894084,1770658238476,-151.0,0.00016997,2]
[404894085,1770658238485,-500.0,0.00017,2]
[404894086,1770658238495,-672895.54320746,0.00017,2]
[404894087,1770658238505,-17028.16893594,0.00017036,2]
[404894088,1770658238514,-160.35043239,0.00017052,2]
[404894089,1770658238523,-9141.37,0.00017053,2]
[404894090,1770658238533,-3061.24834127,0.00017081,2]
[404894091,1770658238542,-62388.6925949,0.00017102,2]
[404894092,1770658238551,-29214.53149073,0.00017102,2]
[404894093,1770658238560,-166.66,0.00017148,2]
[404894094,1770658238570,-150.29839688,0.00017212,2]
[404894095,1770658238580,-185.2,0.00017212,2]
[404894096,1770658238589,-62388.6925949,0.00017218,2]
[404894097,1770658238599,-1418.15,0.00017226,2]
[404894098,1770658238608,-500.0,0.00017227,2]
[404894099,1770658238618,-200.96,0.00017242,2]
[404894100,1770658238627,-526.67950205,0.00017327,2]
[404894101,1770658238636,-418.51776188,0.00017327,2]
[404894102,1770658238646,-806.52251457,0.00017327,2]
[404894103,1770658238655,-11757.95771646,0.00017327,2]
[404894104,1770658238665,-62388.6925949,0.00017335,2]
[404894105,1770658238675,-150.29839688,0.00017441,2]
[404894106,1770658238684,-62388.6925949,0.00017451,2]
[404894107,1770658238694,-200.0,0.00017491,2]
[404894108,1770658238704,-500.0,0.00017491,2]
[404894109,1770658238713,-200.0,0.00017491,2]
[404894110,1770658238724,-1418.15,0.000175,2]
[404894111,1770658238734,-500.0,0.00017501,2]
[404894112,1770658238743,-600.0,0.00017528,2]
[404894113,1770658238753,-62388.6925949,0.00017567,2]
[404894114,1770658238763,-2000.0,0.000176,2]
[404894115,1770658238772,-712.58,0.00017667,2]
[404894116,1770658238781,-62388.6925949,0.00017684,2]
[404894117,1770658238791,-1000.0,0.0001769,2]
[404894118,1770658238801,-33312.6077,0.0001769,2]
[404894119,1770658238810,-172.74936287,0.000177,2]
[404894120,1770658238820,-2000.0,0.000177,2]
[404894121,1770658238829,-876.3883,0.000177,2]
[404894122,1770658238838,-2000.0,0.000177,2]
[404894123,1770658238847,-783.40878762,0.000177,2]
[404894124,1770658238857,-3500.0,0.000177,2]
[404894125,1770658238866,-1418.15,0.00017774,2]
[404894126,1770658238875,-500.0,0.00017775,2]
[404894127,1770658238885,-250.0,0.00017785,2]
[404894128,1770658238894,-310.37,0.000178,2]
[404894129,1770658238904,-500.0,0.000178,2]
[404894130,1770658238914,-237.3935,0.000178,2]
[404894131,1770658238924,-62388.6925949,0.000178,2]
[404894132,1770658238933,-500.0,0.00017808,2]
[404894133,1770658238942,-500.0,0.00017808,2]
[404894134,1770658238952,-500.0,0.00017808,2]
[404894135,1770658238962,-500.0,0.00017808,2]
[404894136,1770658238973,-500.0,0.00017808,2]
[404894137,1770658238982,-500.0,0.00017808,2]
[404894138,1770658238993,-500.0,0.00017808,2]
[404894139,1770658239002,-607.48912033,0.00017808,2]
[404894140,1770658239012,-500.0,0.00017808,2]
[404894141,1770658239021,-150.0,0.00017808,2]
[404894142,1770658239030,-1388.88889,0.0001782,2]
[404894143,1770658239039,-1388.88889,0.0001782,2]
[404894144,1770658239049,-1388.88889,0.0001782,2]
[404894145,1770658239059,-1388.88889,0.0001782,2]
[404894146,1770658239068,-1157.0,0.00017827,2]
[404894147,1770658239078,-1157.0,0.00017845,2]
[404894148,1770658239088,-166.66,0.00017856,2]
[404894149,1770658239097,-150.0,0.00017863,2]
[404894150,1770658239107,-1063.54173058,0.00017899,5]
[404894151,1770658239117,-2460.69490808,0.000179,2]
[404894152,1770658239127,-1500000.0,0.000179,2]
[404894153,1770658239136,-500.0,0.000179,2]
[404894154,1770658239146,-526.67950205,0.000179,2]
[404894155,1770658239158,-418.51776188,0.000179,2]
[404894156,1770658239168,-806.52251457,0.000179,2]
[404894157,1770658239178,-11757.95771646,0.000179,2]
[404894158,1770658239188,-2800.0,0.000179,2]
[404894159,1770658239198,-150.0,0.00017918,2]
[404894160,1770658239209,-250.0,0.00017955,2]
[404894161,1770658239222,-189.0,0.00017955,2]
[404894162,1770658239233,-935.0,0.00017964,2]
[404894163,1770658239242,-200.0,0.00017972,2]
[404894164,1770658239252,-151.0,0.00017977,2]
[404894165,1770658239263,-531077.6417017,0.0001798,2]
[404894166,1770658239274,-4988.0,0.00017993,2]
[404894167,1770658239284,-151.0,0.00017997,2]
[404894168,1770658239293,-300.0,0.00017999,2]
[404894169,1770658239304,-359467.4830407,0.00018,2]
[404894170,1770658239314,-218.28,0.00018,2]
[404894171,1770658239324,-151.0,0.00018,2]
[404894172,1770658239333,-25906.0424055,0.00018,2]
[404894173,1770658239343,-9958539.43105538,0.00018,2]
[404894174,1770658239360,-17000.0,0.00018,2]
[404894175,1770658239375,-70274.36326641,0.00018,2]
[404894178,1770658239971,-150.0,0.00017725,2]
[404894179,1770658239983,-150.0,0.0001778,2]
[404894180,1770658239997,-10143.49999992,0.00018,2]
[404894181,1770658240342,-524.03990619,0.00018,2]
[404894182,1770658240353,-518.9028,0.00018,2]
[404894203,1770658243762,-29214.53149073,0.00017218,2]
[404894204,1770658243772,-150.29839688,0.00017671,2]
[404894205,1770658243786,-240253.78626374,0.00018,2]
[404894206,1770658244555,-391.71553192,0.00017245,2]
[404894207,1770658244567,-1116.79097082,0.00017245,2]
[404894242,1770658245837,-1552.74183853,0.00017245,2]
[404894243,1770658245847,-6800.25816143,0.00018,2]
[404894244,1770658245859,-2719.4999985,0.00018,2]
[404894284,1770658281006,10000.01,0.00016753,2]
[404894285,1770658281029,10000.01,0.00016753,2]
[404894286,1770658281049,10000.01,0.00016753,2]
[404894288,1770658281071,3312.5777,0.00016753,2]
[404894292,1770658284248,6687.4323,0.00016867,2]
[404894293,1770658284269,4813.846671,0.00016867,2]
[404894306,1770658312520,500.0,0.00016852,2]
[404894307,1770658312582,500.0,0.00016852,2]
[404894308,1770658312674,500.0,0.00016852,2]
[404894309,1770658312729,505.36940064,0.00016852,2]
[404894310,1770658312930,500.0,0.00016852,2]
[404894311,1770658315521,500.0,0.00016852,2]
[404894312,1770658315553,500.0,0.00016852,2]
[404894313,1770658315582,500.0,0.00016852,2]
[404894314,1770658315610,500.0,0.00016852,2]
[404894315,1770658315638,494.64059936,0.00016852,2]
[404894316,1770658315662,5.35940064,0.00016852,2]
[404894317,1770658315691,500.0,0.00016852,2]
[404894318,1770658315720,500.0,0.00016852,2]
[404894319,1770658315749,500.0,0.00016852,2]
[404894320,1770658315779,500.0,0.00016852,2]
[404894321,1770658315885,500.0,0.00016852,2]
[404894322,1770658315915,500.0,0.00016852,2]
[404894323,1770658315943,500.0,0.00016852,2]
[404894324,1770658315991,500.0,0.00016852,2]
[404894325,1770658316020,500.0,0.00016852,2]
[404894326,1770658316049,500.0,0.00016852,2]
[404894327,1770658316293,180.80392836,0.00016852,2]
[404894328,1770658316316,319.19607164,0.00016852,2]
[404894329,1770658316352,500.0,0.00016852,2]
[404894330,1770658316386,500.0,0.00016852,2]
[404894331,1770658316417,500.0,0.00016852,2]
[404894332,1770658316448,500.0,0.00016852,2]
[404894333,1770658316477,500.0,0.00016852,2]
[404894334,1770658316509,500.0,0.00016852,2]
[404894335,1770658316543,500.0,0.00016852,2]
[404894336,1770658316577,500.0,0.00016852,2]
[404894337,1770658316611,500.0,0.00016852,2]
[404894338,1770658316650,500.0,0.00016852,2]
[404894339,1770658316680,500.0,0.00016852,2]
[404894340,1770658316710,500.0,0.00016852,2]
[404894341,1770658316744,500.0,0.00016852,2]
[404894342,1770658316775,500.0,0.00016852,2]
[404894343,1770658316812,500.0,0.00016852,2]
[404894344,1770658316843,500.0,0.00016852,2]
[404894345,1770658316873,182.38365207,0.00016852,2]
[404894346,1770658316902,500.0,0.00016852,2]
[404894347,1770658319204,274.29139292,0.00016852,2]
[404894354,1770658387966,500.0,0.00016852,2]
[404894355,1770658388073,224.13888337,0.00016852,2]
[404894356,1770658388119,275.86111663,0.00016852,2]
[404894357,1770658388177,300.0,0.00016852,2]
[404894358,1770658388260,500.0,0.00016852,2]
[404894359,1770658405842,-618.26617197,0.00016952,2]
[404894360,1770658411855,153.73,0.000169,2]
[404894361,1770658412668,358.71,0.000169,2]
[404894362,1770658430556,500.0,0.00016852,2]
[404894366,1770658443977,-174.7075795,0.00016952,2]
[404894367,1770658445720,165.75,0.00016712,2]
[404894369,1770658451259,-248.01469843,0.00017043,2]
[404894370,1770658466529,-236.81193304,0.00017143,2]
[404894371,1770658475075,153.19,0.00017043,2]
[404894372,1770658485975,1028.35962541,0.00017143,2]
[404894373,1770658490032,500.0,0.00016852,2]
[404894374,1770658490748,1530.62417067,0.00017143,2]
[404894376,1770658503947,500.0,0.00017,2]
[404894377,1770658506852,1006.2075765,0.00017143,2]
[404894391,1770658520024,-195.0,0.00017143,2]
[404894392,1770658524759,190.69405049,0.00017143,2]
[404894395,1770658525230,712.25,0.00016637,2]
[404894396,1770658525628,177.17121568,0.00017143,2]
[404894397,1770658527532,-300.0,0.00017233,2]
[404894398,1770658527566,-1200.0,0.00017233,2]
[404894404,1770658532549,188.17333529,0.00017143,2]
[404894408,1770658546989,500.0,0.00016952,2]
[404894409,1770658547222,500.0,0.00016952,2]
[404894410,1770658550377,-589.87757782,0.00017234,2]
[404894411,1770658550409,-236.55288182,0.00017234,2]
[404894412,1770658550440,-500.0,0.00017234,2]
[404894413,1770658550470,-351.12840212,0.00017234,2]
[404894414,1770658550513,-500.0,0.00017234,2]
[404894415,1770658550558,-144.89227648,0.00017234,2]
[404894416,1770658553169,8991.05055389,0.00017143,2]
[404894417,1770658555672,8.95944611,0.00017225,2]
[404894418,1770658555703,10000.01,0.00017225,2]
[404894419,1770658555729,10000.01,0.00017225,2]
[404894420,1770658555755,10000.01,0.00017225,2]
[404894421,1770658555781,10000.01,0.00017225,2]
[404894422,1770658555813,7560.23361198,0.00017225,2]
[404894423,1770658556353,-355.10772352,0.00017234,2]
[404894424,1770658556387,-500.0,0.00017234,2]
[404894425,1770658556423,-500.0,0.00017234,2]
[404894426,1770658556456,-500.0,0.00017234,2]
[404894427,1770658556488,-500.0,0.00017234,2]
[404894428,1770658559363,-347.70214995,0.00017234,2]
[404894429,1770658559395,-712.6,0.00017234,2]
[404894430,1770658561981,2879.4057001,0.00017143,2]
[404894431,1770658562006,1509.61473133,0.00017143,2]
[404894432,1770658568671,500.0,0.00016952,2]
[404894433,1770658568912,430.16165669,0.00016952,2]
[404894434,1770658568936,218.15955606,0.00016952,2]
[404894435,1770658573034,-550.0,0.00017234,2]
[404894436,1770658573073,-300.0,0.00017234,2]
[404894441,1770658585439,838.50631375,0.00017143,2]
[404894445,1770658590552,10000.01,0.00017143,2]
[404894446,1770658590578,10000.01,0.00017143,2]
[404894447,1770658590601,2676.69803297,0.00017143,2]
[404894451,1770658592156,500.0,0.00016852,2]
[404894455,1770658595450,6823.31196703,0.00017156,2]
[404894456,1770658595473,10000.01,0.00017156,2]
[404894457,1770658595496,5853.39606588,0.00017156,2]
[404894460,1770658600441,4146.61393412,0.00017169,2]
[404894461,1770658600465,10000.01,0.00017169,2]
[404894462,1770658600488,8530.09409879,0.00017169,2]
[404894465,1770658605163,1469.91590121,0.00017143,2]
[404894466,1770658605186,10000.01,0.00017143,2]
[404894467,1770658605215,10000.01,0.00017143,2]
[404894468,1770658605240,10000.01,0.00017143,2]
[404894469,1770658605265,3240.4318272,0.00017143,2]
[404894470,1770658605456,6759.5781728,0.00017182,2]
[404894471,1770658605478,10000.01,0.00017182,2]
[404894472,1770658605500,5917.12986011,0.00017182,2]
[404894474,1770658609919,4082.88013989,0.00017156,2]
[404894475,1770658609941,10000.01,0.00017156,2]
[404894476,1770658609964,10000.01,0.00017156,2]
[404894477,1770658609985,10000.01,0.00017156,2]
[404894478,1770658610009,627.46758847,0.00017156,2]
[404894479,1770658610451,9372.54241153,0.00017195,2]
[404894480,1770658610476,10000.01,0.00017195,2]
[404894481,1770658610499,3304.16562138,0.00017195,2]
[404894482,1770658613949,-4100.19555353,0.00017235,2]
[404894484,1770658617604,151.0,0.00014634,2]
[404894485,1770658619970,-5000.01,0.00017169,2]
[404894490,1770658627652,850.505377,7.945e-05,2]
[404894494,1770658643955,2144.41558878,0.00016589,2]
[404894495,1770658643978,3145.92096578,0.00016589,2]
[404894496,1770658644003,3145.92096578,0.00016589,2]
[404894497,1770658644025,3145.92096578,0.00016589,2]
[404894498,1770658644047,3145.92096578,0.00016589,2]
[404894499,1770658644070,3145.92096578,0.00016589,2]
[404894500,1770658644092,164.91958232,0.00016589,2]
[404894504,1770658676851,576.95,0.00016471,2]
[404894506,1770658688811,200.0,0.0001644,2]
[404894509,1770658721400,2725.42153114,0.00035,120]
[404894510,1770658723067,2204.05138346,0.0001634,2]
[404894511,1770658723088,108.21861654,0.0001634,2]
[404894512,1770658756336,2818.68,0.0001639,2]
[404894526,1770658825923,4603.366384,0.00016782,2]
[404894528,1770658855878,805.665744,0.0003561,31]
[404894529,1770658857539,805.665744,0.0003561,31]
[404894530,1770658859006,805.665744,0.0003561,31]
[404894531,1770658860469,805.665744,0.0003561,31]
[404894545,1770658905471,151.0,0.00032877,31]
[404894546,1770658905843,151.0,0.00032877,31]
[404894549,1770658943623,1852.42,0.00016149,2]
[404894550,1770658947599,-292.0,0.00016867,2]
[404894552,1770658960977,289.499733,0.0003561,31]
[404894553,1770658962408,289.499733,0.0003561,31]
[404894554,1770658962543,-250.0,0.0001691,2]
[404894555,1770658963871,289.499733,0.0003561,31]
[404894556,1770658965458,289.499733,0.0003561,31]
[404894558,1770658977775,-500.0,0.00016952,2]
[404894561,1770658992946,-500.0,0.00017,2]
[404894562,1770658997541,166.66,0.00015349,2]
[404894563,1770658997742,166.66,0.00015672,2]
[404894564,1770658997970,166.66,0.00015996,2]
[404894565,1770658998195,166.66,0.00016319,2]
[404894566,1770658998440,166.66,0.00016642,2]
[404894567,1770658998666,166.66,0.00016965,2]
[404894568,1770659005023,242.132173,0.0003561,31]
[404894569,1770659008101,-300.0,0.00017034,2]
[404894570,1770659008130,-1200.0,0.00017034,2]
[404894572,1770659012400,339.86749521,0.00016935,2]
[404894573,1770659017274,2373.49653413,0.00016935,2]
[404894574,1770659018590,339.8674952,0.00016948,2]
[404894575,1770659024484,339.8674952,0.0001696,2]
[404894576,1770659034341,644.532595,0.0003561,31]
[404894577,1770659035793,644.532595,0.0003561,31]
[404894578,1770659037605,644.532595,0.0003561,31]
[404894579,1770659039096,644.532595,0.0003561,31]
[404894581,1770659051515,159.640283,0.0003561,31]
[404894582,1770659052990,-2287.42850818,0.00017035,2]
[404894583,1770659053018,-195.0,0.00017035,2]
[404894584,1770659053043,-4517.57149182,0.00017035,2]
[404894585,1770659053165,159.640283,0.0003561,31]
[404894586,1770659053731,-1314.77868926,0.00017035,2]
[404894587,1770659053913,-2629.55737852,0.00017035,2]
[404894588,1770659054101,-4740.89524296,0.00017035,2]
[404894589,1770659054295,-3400.88743714,0.00017035,2]
[404894590,1770659054326,-861.92696513,0.00017035,2]
[404894591,1770659054359,-187.37750824,0.00017035,2]
[404894592,1770659054446,-3588.46652292,0.00017035,2]
[404894593,1770659054990,159.640283,0.0003561,31]
[404894594,1770659056484,159.640283,0.0003561,31]
[404894595,1770659056778,-2823.07695416,0.00017035,2]
[404894596,1770659056807,-190.69405047,0.00017035,2]
[404894597,1770659058370,3885.55129518,0.00017035,2]
[404894598,1770659060546,-1200.0,0.00017042,2]
[404894599,1770659060570,-500.0,0.00017043,2]
[404894600,1770659060595,-300.0,0.00017044,2]
[404894601,1770659060618,-230.0,0.00017044,2]
[404894602,1770659060642,-550.0,0.00017044,2]
[404894603,1770659060666,-300.0,0.00017044,2]
[404894604,1770659060692,-538.68700605,0.00017045,2]
[404894605,1770659060716,-1381.31299395,0.00017054,2]
[404894606,1770659066744,86.91669556,0.0001681,2]
[404894607,1770659066767,413.08330444,0.0001681,2]
[404894608,1770659087353,6960.83805038,0.00017035,2]
[404894609,1770659090937,3039.17194962,0.00013467,2]
[404894610,1770659090959,6706.70805038,0.00013467,2]
[404894611,1770659092718,3293.30194962,0.00016945,2]
[404894612,1770659092743,10000.01,0.00016945,2]
[404894613,1770659092769,10000.01,0.00016945,2]
[404894618,1770659136629,3237.95941265,0.00016873,2]
[404894619,1770659141370,-12000.0,0.00016935,2]
[404894620,1770659142242,545.792757,0.0001685,2]
[404894621,1770659151183,-27746.03970174,0.00016935,2]
[404894622,1770659151216,-151.0,0.00016942,2]
[404894623,1770659151240,-1200.0,0.00016944,2]
[404894624,1770659151262,-300.0,0.00016944,2]
[404894625,1770659151285,-300.0,0.00016944,2]
[404894626,1770659151307,-550.0,0.00016944,2]
[404894627,1770659151332,-300.0,0.00016944,2]
[404894628,1770659161239,300.0,0.00016944,2]
[404894629,1770659165033,-56639.96029826,0.00016945,2]
[404894630,1770659165720,219.02234924,0.00016145,2]
[404894631,1770659165743,3145.92096578,0.00016145,2]
[404894632,1770659165766,3145.92096578,0.00016145,2]
[404894633,1770659166424,-4986.9557192,0.00016145,2]
[404894638,1770659169635,-4274.36231806,0.00016873,2]
[404894643,1770659182067,190.69405047,0.00016873,2]
[404894645,1770659193941,1260.59131341,0.00016845,2]
[404894646,1770659193964,1026.83719477,0.00016845,2]
[404894647,1770659201532,500.0,0.0001681,2]
[404894648,1770659217727,574.61797674,0.00016873,2]
[404894649,1770659233620,2267.25829144,0.00016873,2]
[404894738,1770659262044,1440.53628294,0.00016873,2]
[404894739,1770659268806,6292.21542562,0.00016122,2]
[404894740,1770659268832,10000.01,0.00016122,2]
[404894741,1770659268853,1842.40457438,0.00016122,2]
[404894742,1770659273412,167.52900594,0.00016942,2]
[404894743,1770659277082,538.68700605,0.00016873,2]
[404894744,1770659289468,2500.0,0.00016845,2]
[404894745,1770659289514,2849.5748787,0.00016845,2]
[404894746,1770659296194,500.0,0.00016918,2]
[404894747,1770659296881,150.0,0.00016918,2]
[404894748,1770659343172,3461.74811525,0.00016845,2]
[404894749,1770659343196,10000.01,0.00016845,2]
[404894750,1770659343219,6215.4308544,0.00016845,2]
[404894751,1770659347931,3784.5791456,0.00016893,2]
[404894752,1770659347953,10000.01,0.00016893,2]
[404894753,1770659347974,5892.59982403,0.00016893,2]
[404894754,1770659352964,10000.01,0.0001694,2]
[404894755,1770659354071,-383.07865116,0.00016845,2]
[404894756,1770659362976,463.0067,0.00016845,2]
[404894757,1770659364064,1511.50552762,0.00016845,2]
[404894758,1770659382591,-5000.01,0.0001694,2]
[404894759,1770659382872,7259.34047006,0.00016845,2]
[404894760,1770659382896,10000.01,0.00016845,2]
[404894761,1770659388535,-5000.01,0.00016845,2]
[404894771,1770659431945,-1899.7165858,0.00016745,2]
[404894772,1770659431955,-6627.20845627,0.000168,2]
[404894773,1770659431964,-378.96616646,0.00016835,2]
[404894774,1770659431973,-730.78,0.00016835,2]
[404894775,1770659431981,-169.06853446,0.00016835,2]
[404894776,1770659431992,-561.71146554,0.00016835,2]
[404894777,1770659432002,-730.78,0.00016835,2]
[404894778,1770659432011,-532.57210984,0.00016835,2]
[404894779,1770659432022,-198.20789016,0.00016835,2]
[404894780,1770659432031,-528.68927702,0.00016835,2]
[404894781,1770659432042,-202.09072298,0.00016835,2]
[404894782,1770659432051,-300.0,0.00016844,2]
[404894783,1770659432060,-300.0,0.00016844,2]
[404894784,1770659432069,-1200.0,0.00016844,2]
[404894785,1770659432079,-292.0,0.00016844,2]
[404894786,1770659432088,-2087.37023994,0.00016845,2]
[404894787,1770659432101,-2677.49964977,0.00016845,2]
[404894788,1770659432112,-3250.0,0.00016845,2]
[404894789,1770659432123,-8301.16846777,0.00016845,2]
[404894790,1770659432136,-696.11200438,0.00016845,2]
[404894791,1770659432151,-5265.45272466,0.00016845,2]
[404894792,1770659432162,-1127.18000044,0.00016845,2]
[404894794,1770659432173,-107113.61240824,0.00016845,2]
[404894796,1770659432183,-20107.50749847,0.00016845,2]
[404894798,1770659432196,-320.65660765,0.00016845,2]
[404894800,1770659432207,-625.6194234,0.00016845,2]
[404894801,1770659432218,-1321.58232096,0.00016845,2]
[404894804,1770659432234,-196927.08526553,0.00016845,2]
[404894806,1770659432247,-35957.15864023,0.00016845,2]
[404894807,1770659432259,-64989.92498971,0.00016845,2]
[404894808,1770659432270,-250.0,0.00016845,2]
[404894809,1770659432281,-1008.74102828,0.00016845,2]
[404894810,1770659432292,-878.94188727,0.00016845,2]
[404894811,1770659432303,-2215.38478634,0.00016845,2]
[404894812,1770659432314,-3521.02374977,0.00016845,2]
[404894813,1770659432431,-0.00781966,0.00016845,2]
[404894814,1770659432444,-48790.4527989,0.00016845,2]
[404894815,1770659432455,-3935.87063297,0.00016845,2]
[404894819,1770659438052,-410.03200002,0.00016845,2]
[404894820,1770659438114,-1074.36898936,0.00016845,2]
[404894821,1770659438157,-2964887.88559622,0.00016845,2]
[404894822,1770659438166,-6090.7332941,0.00016845,2]
[404894823,1770659438175,-542.174732,0.00016852,2]
[404894824,1770659438185,-4677.16896963,0.0001694,2]
[404894825,1770659438194,-151.0,0.00016942,2]
[404894826,1770659438203,-250.0,0.00016943,2]
[404894827,1770659438213,-230.0,0.00016944,2]
[404894828,1770659438222,-550.0,0.00016944,2]
[404894829,1770659438232,-300.0,0.00016944,2]
[404894830,1770659438241,-1200.0,0.00016944,2]
[404894831,1770659438251,-167.52900594,0.00016945,2]
[404894832,1770659438261,-500.0,0.00016973,2]
[404894834,1770659438271,-39746.03970166,0.00016973,2]
[404894835,1770659438281,-19677.18896963,0.00016988,2]
[404894836,1770659438290,-6090.73329404,0.00016996,2]
[404894837,1770659438300,-500.0,0.00017,2]
[404894838,1770659438310,-378.96616646,0.00017002,2]